[Event "Veteran-SM 65+ 2025"]
[Site "Uppsala, Sweden"]
[Date "2025.07.01"]
[Round "4.5"]
[White "Gromark, Per-Olof"]
[Black "Hogberg, Thomas"]
[Result "1/2-1/2"]
[TimeControl "90 min for 40 move + 30 min with an increment of 30 sec starting move 1"]
[WhiteFideId "1722433"]
[BlackFideId "1706039"]
[WhiteElo "1915"]
[BlackElo "1979"]

1. c4 {[%clk 01:30:52]} {[%emt 00:00:07]} e5 {[%clk 01:30:42]} {[%emt
00:00:19]} 2. Nc3 {[%clk 01:31:00]} {[%emt 00:00:22]} d6 {[%clk 01:30:29]}
{[%emt 00:00:43]} 3. Nf3 {[%clk 01:31:00]} {[%emt 00:00:30]} Be7 {[%clk
01:30:24]} {[%emt 00:00:35]} 4. d4 {[%clk 01:31:00]} {[%emt 00:00:30]} Nd7
{[%clk 01:29:13]} {[%emt 00:01:41]} 5. e4 {[%clk 01:26:57]} {[%emt 00:04:32]}
Ngf6 {[%clk 01:24:08]} {[%emt 00:05:36]} 6. Be2 {[%clk 01:26:40]} {[%emt
00:00:47]} O-O {[%clk 01:22:49]} {[%emt 00:01:50]} 7. O-O {[%clk 01:26:58]}
{[%emt 00:00:11]} c6 {[%clk 01:18:49]} {[%emt 00:04:31]} 8. b3 {[%clk
01:15:42]} {[%emt 00:11:46]} Re8 {[%clk 01:15:17]} {[%emt 00:04:01]} 9. Re1
{[%clk 01:11:27]} {[%emt 00:04:44]} Bf8 {[%clk 01:11:49]} {[%emt 00:03:58]} 10.
Bf1 {[%clk 01:10:58]} {[%emt 00:00:59]} h6 {[%clk 01:06:59]} {[%emt 00:05:21]}
11. Bb2 {[%clk 01:10:17]} {[%emt 00:01:11]} Qb6 {[%clk 00:57:39]} {[%emt
00:09:50]} 12. Qd2 {[%clk 01:05:01]} {[%emt 00:05:46]} g6 {[%clk 00:48:37]}
{[%emt 00:09:32]} 13. Rac1 {[%clk 01:02:21]} {[%emt 00:03:10]} Bg7 {[%clk
00:41:25]} {[%emt 00:07:42]} 14. Na4 {[%clk 00:52:27]} {[%emt 00:10:23]} Qc7
{[%clk 00:40:19]} {[%emt 00:01:37]} 15. dxe5 {[%clk 00:50:45]} {[%emt
00:02:12]} dxe5 {[%clk 00:31:48]} {[%emt 00:09:02]} 16. Ba3 {[%clk 00:47:41]}
{[%emt 00:03:33]} c5 {[%clk 00:28:48]} {[%emt 00:03:30]} 17. Nc3 {[%clk
00:45:20]} {[%emt 00:02:50]} Qc6 {[%clk 00:24:23]} {[%emt 00:04:55]} 18. Nd5
{[%clk 00:38:42]} {[%emt 00:07:07]} b6 {[%clk 00:23:13]} {[%emt 00:01:41]} 19.
Bb2 {[%clk 00:37:41]} {[%emt 00:01:31]} Nh7 {[%clk 00:21:30]} {[%emt 00:02:13]}
20. g3 {[%clk 00:35:46]} {[%emt 00:02:25]} Nhf8 {[%clk 00:20:52]} {[%emt
00:01:09]} 21. Bh3 {[%clk 00:34:08]} {[%emt 00:02:07]} Ne6 {[%clk 00:19:35]}
{[%emt 00:01:47]} 22. Bxe6 {[%clk 00:29:35]} {[%emt 00:05:03]} Rxe6 {[%clk
00:19:35]} {[%emt 00:00:31]} 23. Rcd1 {[%clk 00:28:37]} {[%emt 00:01:28]} Nf8
{[%clk 00:16:57]} {[%emt 00:03:07]} 24. Qc2 {[%clk 00:22:04]} {[%emt 00:07:03]}
Re8 {[%clk 00:15:30]} {[%emt 00:01:57]} 25. Ne3 {[%clk 00:16:47]} {[%emt
00:05:46]} Qc7 {[%clk 00:14:01]} {[%emt 00:01:59]} 26. Rd2 {[%clk 00:14:57]}
{[%emt 00:02:22]} Ne6 {[%clk 00:11:04]} {[%emt 00:03:27]} 27. Nd5 {[%clk
00:13:44]} {[%emt 00:01:41]} Qb8 {[%clk 00:11:17]} {[%emt 00:00:18]} 28. Kg2
{[%clk 00:12:30]} {[%emt 00:01:44]} Nd4 {[%clk 00:11:07]} {[%emt 00:00:39]} 29.
Bxd4 {[%clk 00:12:41]} {[%emt 00:00:20]} exd4 {[%clk 00:11:16]} {[%emt
00:00:21]} 30. Ng1 {[%clk 00:12:08]} {[%emt 00:01:02]} f5 {[%clk 00:07:48]}
{[%emt 00:03:59]} 31. f3 {[%clk 00:11:30]} {[%emt 00:01:08]} fxe4 {[%clk
00:06:56]} {[%emt 00:01:23]} 32. fxe4 {[%clk 00:11:57]} {[%emt 00:00:03]} Qd6
{[%clk 00:06:53]} {[%emt 00:00:32]} 33. Nf3 {[%clk 00:09:56]} {[%emt 00:02:31]}
Be5 {[%clk 00:04:40]} {[%emt 00:02:43]} 34. Nxe5 {[%clk 00:09:14]} {[%emt
00:01:12]} Qxe5 {[%clk 00:04:00]} {[%emt 00:01:10]} 35. Rf1 {[%clk 00:08:01]}
{[%emt 00:01:43]} Rf8 {[%clk 00:03:32]} {[%emt 00:00:57]} 36. Rxf8+ {[%clk
00:07:27]} {[%emt 00:01:04]} Kxf8 {[%clk 00:03:59]} {[%emt 00:00:05]} 37. Rf2+
{[%clk 00:07:40]} {[%emt 00:00:16]} Kg7 {[%clk 00:04:20]} {[%emt 00:00:09]} 38.
Qd3 {[%clk 00:06:42]} {[%emt 00:01:27]} Be6 {[%clk 00:02:42]} {[%emt 00:02:08]}
39. Qf3 {[%clk 00:06:04]} {[%emt 00:01:09]} Bg8 {[%clk 00:01:24]} {[%emt
00:01:49]} 40. Qf4 {[%clk 00:02:50]} {[%emt 00:03:43]} Qxf4 {[%clk 00:00:45]}
{[%emt 00:01:09]} 41. Nxf4 {[%clk 00:27:08]} {[%emt 00:06:11]} Re8 {[%clk
00:28:19]} {[%emt 00:02:53]} 42. Re2 {[%clk 00:24:19]} {[%emt 00:03:22]} Kf6
{[%clk 00:25:28]} {[%emt 00:03:21]} 43. Nd3 {[%clk 00:23:16]} {[%emt 00:01:34]}
Ke7 {[%clk 00:23:23]} {[%emt 00:02:34]} 44. Rf2 {[%clk 00:22:36]} {[%emt
00:01:10]} Bh7 {[%clk 00:21:24]} {[%emt 00:02:30]} 45. h4 {[%clk 00:18:50]}
{[%emt 00:04:16]} g5 {[%clk 00:20:52]} {[%emt 00:01:03]} 46. Re2 {[%clk
00:19:08]} {[%emt 00:00:10]} Ke6 {[%clk 00:21:11]} {[%emt 00:00:12]} 47. hxg5
{[%clk 00:19:12]} {[%emt 00:00:26]} hxg5 {[%clk 00:21:34]} {[%emt 00:00:07]} 48.
Nf2 {[%clk 00:16:18]} {[%emt 00:03:22]} Kf6 {[%clk 00:14:18]} {[%emt 00:07:48]}
49. Kf1 {[%clk 00:14:16]} {[%emt 00:02:31]} Bg6 {[%clk 00:13:27]} {[%emt
00:01:21]} 50. Ke1 {[%clk 00:14:09]} {[%emt 00:00:37]} Ke6 {[%clk 00:12:25]}
{[%emt 00:01:29]} 51. Kd2 {[%clk 00:14:14]} {[%emt 00:00:28]} Rh8 {[%clk
00:11:14]} {[%emt 00:01:39]} 52. Ke1 {[%clk 00:10:15]} {[%emt 00:04:32]} Bh5
{[%clk 00:09:10]} {[%emt 00:02:33]} 53. g4 {[%clk 00:09:55]} {[%emt 00:00:51]}
Be8 {[%clk 00:09:32]} {[%emt 00:00:07]} 54. Kf1 {[%clk 00:09:54]} {[%emt
00:00:30]} Rf8 {[%clk 00:09:08]} {[%emt 00:00:55]} 55. Kg2 {[%clk 00:10:04]}
{[%emt 00:00:20]} Rf4 {[%clk 00:08:33]} {[%emt 00:01:04]} 56. Kg3 {[%clk
00:09:24]} {[%emt 00:01:12]} Rf7 {[%clk 00:07:39]} {[%emt 00:01:22]} 57. Nh3
{[%clk 00:08:52]} {[%emt 00:01:02]} Rg7 {[%clk 00:07:10]} {[%emt 00:01:00]}
1/2-1/2

[Event "Veteran-SM 65+ 2025"]
[Site "Uppsala, Sweden"]
[Date "2025.07.01"]
[Round "4.6"]
[White "Dolata, Henryk"]
[Black "Larsson, Per-Olov"]
[Result "0-1"]
[TimeControl "90 min for 40 move + 30 min with an increment of 30 sec starting move 1"]
[WhiteFideId "1709046"]
[BlackFideId "1717774"]
[WhiteElo "1958"]
[BlackElo "1914"]

1. e4 {[%clk 01:30:44]} {[%emt 00:00:15]} c5 {[%clk 01:30:24]} {[%emt
00:00:37]} 2. c4 {[%clk 01:30:34]} {[%emt 00:00:40]} Nc6 {[%clk 01:30:06]}
{[%emt 00:00:48]} 3. Nc3 {[%clk 01:30:54]} {[%emt 00:00:10]} d6 {[%clk
01:30:03]} {[%emt 00:00:33]} 4. g3 {[%clk 01:31:09]} {[%emt 00:00:15]} g6
{[%clk 01:29:24]} {[%emt 00:01:10]} 5. Bg2 {[%clk 01:31:29]} {[%emt 00:00:09]}
Bg7 {[%clk 01:29:34]} {[%emt 00:00:20]} 6. Nge2 {[%clk 01:31:40]} {[%emt
00:00:20]} e5 {[%clk 01:28:34]} {[%emt 00:01:29]} 7. O-O {[%clk 01:31:55]}
{[%emt 00:00:14]} Nge7 {[%clk 01:28:07]} {[%emt 00:00:59]} 8. f4 {[%clk
01:23:20]} {[%emt 00:09:04]} O-O {[%clk 01:24:46]} {[%emt 00:03:51]} 9. d3
{[%clk 01:21:23]} {[%emt 00:02:27]} a6 {[%clk 01:22:31]} {[%emt 00:02:45]} 10.
Be3 {[%clk 01:19:20]} {[%emt 00:02:33]} Nd4 {[%clk 01:16:10]} {[%emt 00:06:51]}
11. Rb1 {[%clk 01:12:27]} {[%emt 00:07:23]} Qa5 {[%clk 01:10:13]} {[%emt
00:06:27]} 12. fxe5 {[%clk 01:05:58]} {[%emt 00:06:59]} dxe5 {[%clk 01:09:25]}
{[%emt 00:01:18]} 13. h3 {[%clk 00:59:48]} {[%emt 00:06:40]} b5 {[%clk
01:05:17]} {[%emt 00:04:38]} 14. Rf2 {[%clk 00:52:36]} {[%emt 00:07:41]} Be6
{[%clk 01:00:25]} {[%emt 00:05:22]} 15. b3 {[%clk 00:50:36]} {[%emt 00:02:31]}
Nxe2+ {[%clk 00:55:15]} {[%emt 00:05:40]} 16. Nxe2 {[%clk 00:50:17]} {[%emt
00:00:49]} b4 {[%clk 00:55:25]} {[%emt 00:00:20]} 17. g4 {[%clk 00:46:17]}
{[%emt 00:04:31]} Qc7 {[%clk 00:54:45]} {[%emt 00:01:10]} 18. Ng3 {[%clk
00:45:40]} {[%emt 00:01:07]} Rad8 {[%clk 00:36:14]} {[%emt 00:19:01]} 19. Qc2
{[%clk 00:39:59]} {[%emt 00:06:10]} Qd6 {[%clk 00:33:45]} {[%emt 00:02:59]} 20.
Rd1 {[%clk 00:37:19]} {[%emt 00:03:10]} Nc6 {[%clk 00:31:25]} {[%emt 00:02:50]}
21. Nf1 {[%clk 00:28:12]} {[%emt 00:09:37]} a5 {[%clk 00:30:10]} {[%emt
00:01:45]} 22. Bg5 {[%clk 00:17:26]} {[%emt 00:11:15]} Ra8 {[%clk 00:28:32]}
{[%emt 00:02:10]} 23. Ne3 {[%clk 00:17:12]} {[%emt 00:00:43]} Nd4 {[%clk
00:27:36]} {[%emt 00:01:26]} 24. Qb1 {[%clk 00:17:27]} {[%emt 00:00:15]} a4
{[%clk 00:26:29]} {[%emt 00:01:38]} 25. Nd5 {[%clk 00:16:21]} {[%emt 00:01:35]}
Bxd5 {[%clk 00:25:35]} {[%emt 00:01:24]} 26. cxd5 {[%clk 00:16:33]} {[%emt
00:00:18]} axb3 {[%clk 00:24:47]} {[%emt 00:01:18]} 27. axb3 {[%clk 00:17:02]}
{[%emt 00:00:02]} Ra3 {[%clk 00:24:25]} {[%emt 00:00:51]} 28. Rb2 {[%clk
00:16:02]} {[%emt 00:01:30]} Rfa8 {[%clk 00:23:41]} {[%emt 00:01:15]} 29. Be3
{[%clk 00:15:37]} {[%emt 00:00:55]} Nb5 {[%clk 00:22:17]} {[%emt 00:01:53]} 30.
Bd2 {[%clk 00:14:26]} {[%emt 00:01:41]} Qb6 {[%clk 00:20:50]} {[%emt 00:01:57]}
31. Kh1 {[%clk 00:11:56]} {[%emt 00:03:00]} Nc3 {[%clk 00:20:00]} {[%emt
00:01:21]} 32. Bxc3 {[%clk 00:10:36]} {[%emt 00:01:50]} bxc3 {[%clk 00:20:15]}
{[%emt 00:00:13]} 33. Rc2 {[%clk 00:10:18]} {[%emt 00:00:49]} Rxb3 {[%clk
00:20:23]} {[%emt 00:00:23]} 34. Qc1 {[%clk 00:10:43]} {[%emt 00:00:05]} Qb4
{[%clk 00:19:36]} {[%emt 00:01:17]} 35. Qe3 {[%clk 00:09:26]} {[%emt 00:01:47]}
Rb2 {[%clk 00:17:42]} {[%emt 00:02:23]} 36. Rdc1 {[%clk 00:08:16]} {[%emt
00:01:40]} Qd4 {[%clk 00:14:28]} {[%emt 00:03:43]} 37. Qe2 {[%clk 00:05:46]}
{[%emt 00:03:01]} Raa2 {[%clk 00:12:55]} {[%emt 00:02:03]} 38. g5 {[%clk
00:03:48]} {[%emt 00:02:29]} Bf8 {[%clk 00:12:02]} {[%emt 00:01:22]} 39. Kh2
{[%clk 00:02:48]} {[%emt 00:01:31]} Qa4 {[%clk 00:06:06]} {[%emt 00:06:25]} 40.
Rxb2 {[%clk 00:02:56]} {[%emt 00:00:22]} cxb2 {[%clk 00:04:28]} {[%emt
00:02:08]} 41. Rb1 {[%clk 00:02:56]} {[%emt 00:00:30]} Qd4 {[%clk 00:04:22]}
{[%emt 00:00:36]} 42. Qc2 {[%clk 00:02:16]} {[%emt 00:01:10]} Qb4 {[%clk
00:03:03]} {[%emt 00:01:49]} 43. Kg3 {[%clk 00:23:48]} {[%emt 00:08:58]} h6
{[%clk 00:32:23]} {[%emt 00:01:11]} 44. h4 {[%clk 00:23:59]} {[%emt 00:00:18]}
hxg5 {[%clk 00:27:59]} {[%emt 00:04:53]} 45. hxg5 {[%clk 00:24:29]} Qd4 {[%clk
00:26:01]} {[%emt 00:02:29]} 46. Qe2 {[%clk 00:19:31]} {[%emt 00:05:28]} Ra3
{[%clk 00:23:23]} {[%emt 00:03:09]} 47. Rxb2 {[%clk 00:18:35]} {[%emt
00:01:25]} Rxd3+ {[%clk 00:23:26]} {[%emt 00:00:27]} 48. Kh2 {[%clk 00:18:21]}
{[%emt 00:00:44]} Rd1 {[%clk 00:19:36]} {[%emt 00:04:21]} 49. Rb7 {[%clk
00:17:29]} {[%emt 00:01:22]} c4 {[%clk 00:18:23]} {[%emt 00:01:42]} 50. Rc7
{[%clk 00:13:36]} {[%emt 00:04:23]} Qg1+ {[%clk 00:15:17]} {[%emt 00:03:36]} 51.
Kh3 {[%clk 00:13:40]} {[%emt 00:00:26]} Rd3+ {[%clk 00:15:31]} {[%emt
00:00:16]} 52. Bf3 {[%clk 00:12:14]} {[%emt 00:01:55]} Qxg5 {[%clk 00:14:06]}
{[%emt 00:01:55]} 53. Rxc4 {[%clk 00:12:29]} {[%emt 00:00:16]} Qh6+ {[%emt
00:02:15]} 0-1

[Event "Veteran-SM 65+ 2025"]
[Site "Uppsala, Sweden"]
[Date "2025.07.01"]
[Round "4.7"]
[White "Bytar, Peter"]
[Black "Wedin, Svante"]
[Result "0-1"]
[TimeControl "90 min for 40 move + 30 min with an increment of 30 sec starting move 1"]
[WhiteFideId "1731530"]
[BlackFideId "1711989"]
[WhiteElo "1910"]
[BlackElo "1864"]

1. c4 {[%clk 01:29:29]} {[%emt 00:01:31]} Nf6 {[%clk 01:30:06]} {[%emt
00:00:55]} 2. Nc3 {[%clk 01:29:21]} {[%emt 00:00:38]} g6 {[%clk 01:30:25]}
{[%emt 00:00:11]} 3. g3 {[%clk 01:29:31]} {[%emt 00:00:20]} Bg7 {[%clk
01:30:05]} {[%emt 00:00:49]} 4. Bg2 {[%clk 01:29:47]} {[%emt 00:00:14]} O-O
{[%clk 01:30:33]} {[%emt 00:00:02]} 5. Nf3 {[%clk 01:30:08]} {[%emt 00:00:09]}
d6 {[%clk 01:28:20]} {[%emt 00:02:44]} 6. d4 {[%clk 01:26:40]} {[%emt
00:03:57]} c6 {[%clk 01:27:51]} {[%emt 00:00:59]} 7. O-O {[%clk 01:26:55]}
{[%emt 00:00:15]} Qc7 {[%clk 01:28:16]} {[%emt 00:00:05]} 8. e4 {[%clk
01:26:55]} {[%emt 00:00:31]} Nbd7 {[%clk 01:27:07]} {[%emt 00:01:38]} 9. h3
{[%clk 01:25:06]} {[%emt 00:02:19]} h6 {[%clk 01:20:43]} {[%emt 00:06:54]} 10.
Be3 {[%clk 01:24:00]} {[%emt 00:01:36]} e5 {[%clk 01:20:52]} {[%emt 00:00:22]}
11. Qd2 {[%clk 01:12:06]} {[%emt 00:12:24]} Kh7 {[%clk 01:19:50]} {[%emt
00:01:31]} 12. b3 {[%clk 01:07:04]} {[%emt 00:05:32]} a6 {[%clk 01:18:20]}
{[%emt 00:02:00]} 13. Rfd1 {[%clk 01:05:17]} {[%emt 00:02:17]} Re8 {[%clk
01:16:46]} {[%emt 00:02:03]} 14. Rac1 {[%clk 01:01:41]} {[%emt 00:04:07]} exd4
{[%clk 01:10:34]} {[%emt 00:06:43]} 15. Nxd4 {[%clk 01:01:55]} {[%emt
00:00:16]} Nc5 {[%clk 01:08:32]} {[%emt 00:02:32]} 16. f3 {[%clk 01:00:30]}
{[%emt 00:01:54]} Bf8 {[%clk 01:05:20]} {[%emt 00:03:42]} 17. Nde2 {[%clk
00:57:48]} {[%emt 00:03:11]} Ne6 {[%clk 01:02:59]} {[%emt 00:02:52]} 18. Nd5
{[%clk 00:54:54]} {[%emt 00:03:23]} cxd5 {[%clk 00:55:16]} {[%emt 00:08:14]} 19.
cxd5 {[%clk 00:55:12]} {[%emt 00:00:13]} Nc5 {[%clk 00:55:04]} {[%emt
00:00:41]} 20. b4 {[%clk 00:55:35]} {[%emt 00:00:07]} b6 {[%clk 00:55:19]}
{[%emt 00:00:15]} 21. bxc5 {[%clk 00:48:23]} {[%emt 00:07:43]} bxc5 {[%clk
00:54:49]} {[%emt 00:01:00]} 22. Bd4 {[%clk 00:46:43]} {[%emt 00:02:09]} Qe7
{[%clk 00:53:12]} {[%emt 00:02:07]} 23. Bc3 {[%clk 00:45:38]} {[%emt 00:01:35]}
Bd7 {[%clk 00:51:07]} {[%emt 00:02:35]} 24. Rb1 {[%clk 00:43:22]} {[%emt
00:02:47]} Bb5 {[%clk 00:50:38]} {[%emt 00:00:58]} 25. Re1 {[%clk 00:39:32]}
{[%emt 00:04:19]} Nd7 {[%clk 00:45:25]} {[%emt 00:05:44]} 26. f4 {[%clk
00:27:57]} {[%emt 00:12:06]} Nb6 {[%clk 00:41:38]} {[%emt 00:04:16]} 27. Nc1
{[%clk 00:18:26]} {[%emt 00:10:01]} Rac8 {[%clk 00:34:30]} {[%emt 00:07:38]} 28.
Qf2 {[%clk 00:15:59]} {[%emt 00:02:56]} Bg7 {[%clk 00:30:10]} {[%emt 00:04:51]}
29. Bxg7 {[%clk 00:16:16]} {[%emt 00:00:13]} Kxg7 {[%clk 00:30:40]} {[%emt
00:00:01]} 30. Ne2 {[%clk 00:10:25]} {[%emt 00:06:19]} Na4 {[%clk 00:24:30]}
{[%emt 00:06:41]} 31. Rbc1 {[%clk 00:06:22]} {[%emt 00:04:33]} Nb2 {[%clk
00:23:29]} {[%emt 00:01:32]} 32. Nc3 {[%clk 00:03:08]} {[%emt 00:03:44]} Nd3
{[%clk 00:23:35]} {[%emt 00:00:23]} 33. Qe3 {[%clk 00:01:31]} {[%emt 00:02:08]}
Nxe1 {[%clk 00:21:53]} {[%emt 00:02:12]} 34. Rxe1 {[%clk 00:01:59]} {[%emt
00:00:01]} f6 {[%clk 00:21:36]} {[%emt 00:00:47]} 35. a4 {[%clk 00:01:06]}
{[%emt 00:01:23]} Bc4 {[%clk 00:20:25]} {[%emt 00:01:41]} 36. a5 {[%clk
00:00:42]} {[%emt 00:00:55]} Rb8 {[%clk 00:20:35]} {[%emt 00:00:19]} 37. Na4
{[%clk 00:01:10]} {[%emt 00:00:03]} Bxd5 {[%clk 00:17:58]} {[%emt 00:03:07]} 38.
Nb6 {[%clk 00:01:31]} {[%emt 00:00:08]} Bb7 {[%clk 00:17:50]} {[%emt 00:00:38]}
39. Qd3 {[%clk 00:01:37]} {[%emt 00:00:24]} Rbd8 {[%clk 00:12:33]} {[%emt
00:05:48]} 40. Kh2 {[%clk 00:00:50]} {[%emt 00:01:17]} Qc7 {[%clk 00:12:19]}
{[%emt 00:00:42]} 41. Qc3 {[%clk 00:28:03]} {[%emt 00:03:19]} Re6 {[%clk
00:36:06]} {[%emt 00:06:42]} 42. e5 {[%clk 00:21:57]} {[%emt 00:06:36]} fxe5
{[%clk 00:35:38]} {[%emt 00:00:58]} 43. fxe5 {[%clk 00:20:35]} {[%emt
00:01:52]} dxe5 {[%clk 00:33:15]} {[%emt 00:02:53]} 44. Bxb7 {[%clk 00:17:49]}
{[%emt 00:03:16]} Qxb7 {[%clk 00:33:30]} {[%emt 00:00:16]} 45. Rxe5 {[%clk
00:17:42]} {[%emt 00:00:37]} Rxe5 {[%clk 00:32:43]} {[%emt 00:01:17]} 46. Qxe5+
{[%clk 00:18:04]} {[%emt 00:00:08]} Kh7 {[%clk 00:32:50]} {[%emt 00:00:22]} 47.
Nc4 {[%clk 00:16:37]} {[%emt 00:01:56]} Rd1 {[%clk 00:29:49]} {[%emt 00:03:32]}
0-1

[Event "Veteran-SM 65+ 2025"]
[Site "Uppsala, Sweden"]
[Date "2025.07.01"]
[Round "4.8"]
[White "Salholm, Soren"]
[Black "Johansson, Jan"]
[Result "0-1"]
[TimeControl "90 min for 40 move + 30 min with an increment of 30 sec starting move 1"]
[BlackTitle "IM"]
[WhiteFideId "1722824"]
[BlackFideId "1700103"]
[WhiteElo "1887"]
[BlackElo "2258"]

1. e4 {[%emt 00:00:04]} g6 {[%emt 00:00:23]} 2. Nf3 {[%clk 01:30:02]} {[%emt
00:00:23]} Bg7 {[%clk 01:30:34]} {[%emt 00:00:34]} 3. Nc3 {[%clk 01:29:40]}
{[%emt 00:00:52]} c5 {[%clk 01:26:49]} {[%emt 00:04:15]} 4. Bc4 {[%clk
01:27:28]} {[%emt 00:02:42]} Nc6 {[%clk 01:26:42]} {[%emt 00:00:38]} 5. a3
{[%clk 01:22:19]} {[%emt 00:05:38]} d6 {[%clk 01:24:41]} {[%emt 00:02:32]} 6.
O-O {[%clk 01:20:41]} {[%emt 00:02:07]} Nf6 {[%clk 01:24:15]} {[%emt 00:00:56]}
7. Re1 {[%clk 01:09:22]} {[%emt 00:11:48]} O-O {[%clk 01:21:50]} {[%emt
00:02:56]} 8. h3 {[%clk 01:06:36]} {[%emt 00:03:16]} a6 {[%clk 01:14:48]}
{[%emt 00:07:32]} 9. a4 {[%clk 01:01:51]} {[%emt 00:05:14]} b6 {[%clk
01:13:42]} {[%emt 00:01:38]} 10. d3 {[%clk 00:59:39]} {[%emt 00:02:41]} Bb7
{[%clk 01:13:30]} {[%emt 00:00:42]} 11. Bg5 {[%clk 00:58:48]} {[%emt 00:01:21]}
Nb4 {[%clk 01:01:35]} {[%emt 00:12:25]} 12. Bb3 {[%clk 00:56:31]} {[%emt
00:02:46]} h6 {[%clk 00:55:36]} {[%emt 00:06:29]} 13. Bh4 {[%clk 00:51:16]}
{[%emt 00:05:45]} Nh5 {[%clk 00:47:52]} 14. Nd5 {[%emt 00:21:56]} Nxd5 15. exd5
{[%clk 00:38:04]} Re8 {[%clk 00:44:54]} 16. c3 {[%clk 00:31:37]} {[%emt
00:11:16]} Nf6 {[%clk 00:35:40]} {[%emt 00:09:54]} 17. Bxf6 {[%clk 00:26:35]}
{[%emt 00:05:31]} Bxf6 {[%clk 00:35:51]} {[%emt 00:00:19]} 18. Qd2 {[%clk
00:24:50]} {[%emt 00:02:14]} Kh7 {[%clk 00:33:58]} {[%emt 00:02:24]} 19. Nh2
{[%clk 00:20:57]} {[%emt 00:04:23]} Bc8 {[%clk 00:30:54]} {[%emt 00:03:33]} 20.
Ng4 {[%clk 00:20:14]} {[%emt 00:01:13]} Bg7 {[%clk 00:31:05]} {[%emt 00:00:19]}
21. Qf4 {[%clk 00:19:25]} {[%emt 00:01:18]} Rf8 {[%clk 00:31:06]} {[%emt
00:00:30]} 22. Qe3 {[%clk 00:17:37]} {[%emt 00:02:19]} Ra7 {[%clk 00:29:34]}
{[%emt 00:02:02]} 23. Nh2 {[%clk 00:13:47]} {[%emt 00:01:55]} e6 {[%clk
00:22:25]} {[%emt 00:10:04]} 24. Qg3 {[%clk 00:07:09]} {[%emt 00:07:07]} e5
{[%clk 00:22:27]} {[%emt 00:00:29]} 25. Nf1 {[%clk 00:06:28]} {[%emt 00:01:09]}
Re7 {[%clk 00:16:10]} {[%emt 00:06:48]} 26. Nd2 {[%clk 00:06:03]} {[%emt
00:00:57]} f5 {[%clk 00:12:43]} {[%emt 00:03:56]} 27. Bd1 {[%clk 00:05:41]}
{[%emt 00:00:51]} Bf6 {[%clk 00:10:52]} {[%emt 00:02:21]} 28. Nf3 {[%clk
00:04:47]} {[%emt 00:01:24]} f4 {[%clk 00:07:15]} {[%emt 00:04:08]} 29. Qh2
{[%emt 00:00:13]} Bf5 {[%emt 00:00:32]} 30. Bc2 {[%clk 00:03:32]} {[%emt
00:00:59]} c4 {[%clk 00:07:23]} {[%emt 00:00:23]} 31. Rad1 {[%clk 00:02:34]}
{[%emt 00:01:28]} cxd3 {[%clk 00:07:38]} {[%emt 00:00:15]} 32. Rxd3 {[%clk
00:02:54]} {[%emt 00:00:10]} Bxd3 {[%clk 00:07:43]} {[%emt 00:00:25]} 33. Bxd3
{[%clk 00:01:26]} {[%emt 00:00:04]} Qe8 {[%clk 00:06:24]} {[%emt 00:03:43]} 34.
Nd2 {[%clk 00:01:15]} {[%emt 00:00:41]} Qxa4 {[%clk 00:02:38]} {[%emt
00:04:16]} 35. Ne4 {[%clk 00:01:32]} {[%emt 00:00:12]} Qd7 {[%clk 00:02:37]}
{[%emt 00:00:32]} 36. h4 {[%clk 00:01:36]} {[%emt 00:00:26]} Kg7 {[%clk
00:02:58]} {[%emt 00:00:08]} 37. h5 {[%clk 00:01:01]} {[%emt 00:01:05]} g5
{[%clk 00:03:22]} {[%emt 00:00:07]} 38. g3 {[%clk 00:00:52]} {[%emt 00:00:39]}
f3 {[%clk 00:02:21]} {[%emt 00:01:31]} 39. Qh1 {[%clk 00:00:52]} {[%emt
00:00:30]} g4 {[%clk 00:01:48]} {[%emt 00:01:04]} 40. Kh2 {[%clk 00:00:39]}
{[%emt 00:00:42]} Ree8 {[%emt 00:01:46]} 41. Qf1 {[%clk 00:00:52]} b5 {[%clk
00:00:57]} {[%emt 00:00:22]} 42. Nd2 {[%clk 00:27:30]} {[%emt 00:03:53]} Bg5
{[%clk 00:27:53]} {[%emt 00:03:33]} 43. Ne4 {[%clk 00:20:53]} {[%emt 00:07:06]}
Bd8 {[%clk 00:26:15]} {[%emt 00:02:08]} 44. Nd2 {[%clk 00:20:03]} {[%emt
00:01:21]} Qf7 {[%clk 00:23:16]} {[%emt 00:03:29]} 45. Bg6 {[%clk 00:19:16]}
{[%emt 00:01:16]} Qxd5 {[%clk 00:20:18]} {[%emt 00:03:29]} 46. Ne4 {[%clk
00:17:42]} {[%emt 00:02:04]} Qc6 {[%clk 00:19:48]} {[%emt 00:00:59]} 47. Qd3
{[%clk 00:15:44]} {[%emt 00:02:29]} d5 {[%clk 00:19:49]} {[%emt 00:00:29]} 48.
Bxe8 {[%clk 00:13:33]} {[%emt 00:02:40]} Rxe8 {[%clk 00:20:13]} {[%emt
00:00:07]} 0-1